[Event "Titled Tuesday Blitz January 17 Early 2023"]
[White "Dinu, Dumitru-Daniel"]
[Black "Kuchava, Ana"]
[WhiteFideId "1208403"]
[BlackFideId "13605348"]
[WhiteElo "2203"]
[BlackElo "2101"]
[Result "1-0"]
[Round "07"]
[TimeControl "180+2"]
[Date "2023.01.17"]
[WhiteClock "0:00:32"]
[BlackClock "0:00:43"]

1. e4 {[%clk 0:03:00]}  c5 {[%clk 0:02:55]} 2. Be2 {[%clk 0:03:01]}  Nc6 {[%clk 0:02:55]} 3. f4 {[%clk 0:03:01]}  e6 {[%clk 0:02:54]} 4. Nf3 {[%clk 0:03:00]}  d5 {[%clk 0:02:54]} 5. d3 {[%clk 0:03:00]}  Nf6 {[%clk 0:02:50]} 6. e5 {[%clk 0:03:00]}  Nd7 {[%clk 0:02:50]} 7. O-O {[%clk 0:02:59]}  Be7 {[%clk 0:02:40]} 8. c3 {[%clk 0:02:58]}  Qc7 {[%clk 0:02:38]} 9. Na3 {[%clk 0:02:50]}  a6 {[%clk 0:02:37]} 10. Nc2 {[%clk 0:02:48]}  b5 {[%clk 0:02:35]} 11. d4 {[%clk 0:02:47]}  Bb7 {[%clk 0:02:35]} 12. Be3 {[%clk 0:02:44]}  O-O {[%clk 0:02:27]} 13. a4 {[%clk 0:02:38]}  b4 {[%clk 0:02:17]} 14. dxc5 {[%clk 0:02:17]}  Nxc5 {[%clk 0:01:52]} 15. Nxb4 {[%clk 0:02:03]}  Nxb4 {[%clk 0:01:44]} 16. cxb4 {[%clk 0:02:02]}  Ne4 {[%clk 0:01:44]} 17. Rc1 {[%clk 0:01:56]}  Qd7 {[%clk 0:01:42]} 18. b5 {[%clk 0:01:52]}  Rfb8 {[%clk 0:01:19]} 19. Bd3 {[%clk 0:01:37]}  Qd8 {[%clk 0:01:11]} 20. Bxe4 {[%clk 0:01:23]}  dxe4 {[%clk 0:01:10]} 21. Nd4 {[%clk 0:01:09]}  Qa5 {[%clk 0:00:48]} 22. Nc6 {[%clk 0:00:45]}  Bxc6 {[%clk 0:00:47]} 23. bxc6 {[%clk 0:00:46]}  Rxb2 {[%clk 0:00:44]} 24. c7 {[%clk 0:00:33]}  Rc8 {[%clk 0:00:43]} 25. Qd7 {[%clk 0:00:32]} 1-0


[Site "https://www.chess.com"]

[Event "Titled Tuesday Blitz January 17 Early 2023"]
[White "Lacasa Diaz, Jose Antonio"]
[Black "Ruge, Edison"]
[WhiteFideId "2203375"]
[BlackFideId "4401000"]
[WhiteElo "2359"]
[BlackElo "2201"]
[Result "1-0"]
[Round "07"]
[TimeControl "180+2"]
[Date "2023.01.17"]
[WhiteClock "0:00:18"]
[BlackClock "0:00:03"]

1. e4 {[%clk 0:03:00]}  e5 {[%clk 0:02:56]} 2. Nf3 {[%clk 0:03:01]}  Nc6 {[%clk 0:02:56]} 3. Bb5 {[%clk 0:03:01]}  f5 {[%clk 0:02:55]} 4. d4 {[%clk 0:02:52]}  fxe4 {[%clk 0:02:55]} 5. Nxe5 {[%clk 0:02:52]}  Nxe5 {[%clk 0:02:55]} 6. dxe5 {[%clk 0:02:51]}  c6 {[%clk 0:02:55]} 7. Nc3 {[%clk 0:02:52]}  cxb5 {[%clk 0:02:53]} 8. Nxe4 {[%clk 0:02:52]}  d5 {[%clk 0:02:54]} 9. exd6 {[%clk 0:02:52]}  Nf6 {[%clk 0:02:53]} 10. Qd4 {[%clk 0:02:53]}  Nxe4 {[%clk 0:02:44]} 11. Qxe4+ {[%clk 0:02:53]}  Kf7 {[%clk 0:02:44]} 12. Bf4 {[%clk 0:02:53]}  Qe8 {[%clk 0:02:42]} 13. Qxe8+ {[%clk 0:02:46]}  Kxe8 {[%clk 0:02:41]} 14. O-O-O {[%clk 0:02:46]}  Kd7 {[%clk 0:02:20]} 15. Rhe1 {[%clk 0:02:40]}  b6 {[%clk 0:02:17]} 16. Re5 {[%clk 0:02:31]}  Bb7 {[%clk 0:01:59]} 17. f3 {[%clk 0:02:30]}  a6 {[%clk 0:01:47]} 18. Rf5 {[%clk 0:02:26]}  Kc6 {[%clk 0:01:24]} 19. Rf7 {[%clk 0:02:12]}  Rc8 {[%clk 0:01:22]} 20. d7 {[%clk 0:02:06]}  Rd8 {[%clk 0:01:22]} 21. Bg5 {[%clk 0:02:06]}  Bd6 {[%clk 0:01:14]} 22. Bxd8 {[%clk 0:01:57]}  Rxd8 {[%clk 0:01:13]} 23. Rxg7 {[%clk 0:01:52]}  Rxd7 {[%clk 0:01:13]} 24. Rxd7 {[%clk 0:01:46]}  Kxd7 {[%clk 0:01:13]} 25. Rd4 {[%clk 0:01:44]}  Ke6 {[%clk 0:01:01]} 26. Rh4 {[%clk 0:01:42]}  Bd5 {[%clk 0:00:50]} 27. Kb1 {[%clk 0:01:28]}  a5 {[%clk 0:00:44]} 28. Rxh7 {[%clk 0:01:26]}  a4 {[%clk 0:00:43]} 29. a3 {[%clk 0:01:11]}  Be5 {[%clk 0:00:31]} 30. Rh6+ {[%clk 0:01:09]}  Bf6 {[%clk 0:00:29]} 31. c3 {[%clk 0:01:03]}  Kf7 {[%clk 0:00:23]} 32. Rh7+ {[%clk 0:00:55]}  Bg7 {[%clk 0:00:20]} 33. Rh5 {[%clk 0:00:54]}  Ke6 {[%clk 0:00:19]} 34. Kc2 {[%clk 0:00:52]}  Bc4 {[%clk 0:00:17]} 35. g4 {[%clk 0:00:46]}  Be2 {[%clk 0:00:16]} 36. Rf5 {[%clk 0:00:43]}  Bc4 {[%clk 0:00:14]} 37. h4 {[%clk 0:00:43]}  Be5 {[%clk 0:00:14]} 38. h5 {[%clk 0:00:40]}  Bg7 {[%clk 0:00:05]} 39. Rg5 {[%clk 0:00:31]}  Kf7 {[%clk 0:00:05]} 40. f4 {[%clk 0:00:25]}  Bf6 {[%clk 0:00:04]} 41. Rf5 {[%clk 0:00:23]}  Be6 {[%clk 0:00:04]} 42. Rxb5 {[%clk 0:00:20]}  Bxg4 {[%clk 0:00:05]} 43. h6 {[%clk 0:00:20]}  Bf5+ {[%clk 0:00:03]} 44. Kd2 {[%clk 0:00:18]}  Kg6 {[%clk 0:00:03]} 45. Rxb6 {[%clk 0:00:18]} 1-0


[Site "https://www.chess.com"]

[Event "Titled Tuesday Blitz January 17 Early 2023"]
[White "Dwilewicz, Katarzyna"]
[Black "MunichMouse"]
[WhiteFideId "1148486"]
[WhiteElo "2115"]
[BlackElo "2211"]
[Result "0-1"]
[Round "07"]
[TimeControl "180+2"]
[Date "2023.01.17"]
[WhiteClock "0:00:03"]
[BlackClock "0:00:19"]

1. e4 {[%clk 0:03:00]}  c5 {[%clk 0:02:59]} 2. Nf3 {[%clk 0:03:00]}  d6 {[%clk 0:02:56]} 3. d4 {[%clk 0:03:00]}  cxd4 {[%clk 0:02:54]} 4. Nxd4 {[%clk 0:03:01]}  Nf6 {[%clk 0:02:55]} 5. Nc3 {[%clk 0:03:02]}  a6 {[%clk 0:02:55]} 6. Bg5 {[%clk 0:03:01]}  e6 {[%clk 0:02:55]} 7. Qd2 {[%clk 0:02:54]}  Nc6 {[%clk 0:02:51]} 8. O-O-O {[%clk 0:02:53]}  h6 {[%clk 0:02:52]} 9. Bh4 {[%clk 0:02:27]}  Nxd4 {[%clk 0:02:37]} 10. Qxd4 {[%clk 0:02:25]}  Be7 {[%clk 0:02:37]} 11. f3 {[%clk 0:02:20]}  Qc7 {[%clk 0:02:37]} 12. Qc4 {[%clk 0:02:15]}  Qxc4 {[%clk 0:02:34]} 13. Bxc4 {[%clk 0:02:14]}  b5 {[%clk 0:02:30]} 14. Bb3 {[%clk 0:02:14]}  b4 {[%clk 0:02:25]} 15. Na4 {[%clk 0:02:12]}  Nd7 {[%clk 0:02:25]} 16. Bxe7 {[%clk 0:02:07]}  Kxe7 {[%clk 0:02:26]} 17. Rd2 {[%clk 0:02:08]}  Nc5 {[%clk 0:02:05]} 18. Rhd1 {[%clk 0:01:48]}  Nxa4 {[%clk 0:02:03]} 19. Bxa4 {[%clk 0:01:48]}  Rd8 {[%clk 0:02:04]} 20. e5 {[%clk 0:01:26]}  d5 {[%clk 0:02:01]} 21. f4 {[%clk 0:01:27]}  Bd7 {[%clk 0:01:57]} 22. Bxd7 {[%clk 0:01:23]}  Rxd7 {[%clk 0:01:57]} 23. g4 {[%clk 0:01:23]}  Rc7 {[%clk 0:01:54]} 24. Rd3 {[%clk 0:01:18]}  Rc4 {[%clk 0:01:54]} 25. Rd4 {[%clk 0:01:17]}  Rac8 {[%clk 0:01:52]} 26. R1d2 {[%clk 0:01:16]}  a5 {[%clk 0:01:50]} 27. b3 {[%clk 0:01:15]}  Rxd4 {[%clk 0:01:50]} 28. Rxd4 {[%clk 0:01:15]}  Rc3 {[%clk 0:01:51]} 29. Rd3 {[%clk 0:01:15]}  Rxd3 {[%clk 0:00:23]} 30. cxd3 {[%clk 0:01:16]}  g5 {[%clk 0:00:23]} 31. f5 {[%clk 0:00:43]}  f6 {[%clk 0:00:23]} 32. d4 {[%clk 0:00:40]}  fxe5 {[%clk 0:00:22]} 33. dxe5 {[%clk 0:00:40]}  exf5 {[%clk 0:00:23]} 34. gxf5 {[%clk 0:00:40]}  h5 {[%clk 0:00:24]} 35. Kd2 {[%clk 0:00:38]}  g4 {[%clk 0:00:24]} 36. Ke3 {[%clk 0:00:33]}  h4 {[%clk 0:00:24]} 37. Kf4 {[%clk 0:00:28]}  g3 {[%clk 0:00:22]} 38. hxg3 {[%clk 0:00:27]}  h3 {[%clk 0:00:23]} 39. Kf3 {[%clk 0:00:21]}  d4 {[%clk 0:00:23]} 40. g4 {[%clk 0:00:20]}  d3 {[%clk 0:00:22]} 41. g5 {[%clk 0:00:20]}  Kf7 {[%clk 0:00:21]} 42. g6+ {[%clk 0:00:19]}  Kg7 {[%clk 0:00:22]} 43. e6 {[%clk 0:00:13]}  Kf6 {[%clk 0:00:21]} 44. g7 {[%clk 0:00:04]}  Kxg7 {[%clk 0:00:21]} 45. Kg4 {[%clk 0:00:04]}  Kf6 {[%clk 0:00:19]} 46. Kxh3 {[%clk 0:00:03]}  d2 {[%clk 0:00:19]} 0-1


[Site "https://www.chess.com"]

[Event "Titled Tuesday Blitz January 17 Early 2023"]
[White "Novikov, Evgenij"]
[Black "Degtiarev, Evgeny"]
[WhiteFideId "4125380"]
[BlackFideId "4149610"]
[WhiteElo "2276"]
[BlackElo "2385"]
[Result "1-0"]
[Round "07"]
[TimeControl "180+2"]
[Date "2023.01.17"]
[WhiteClock "0:00:05"]
[BlackClock "0:00:02"]

1. c4 {[%clk 0:03:00]}  e5 {[%clk 0:02:59]} 2. Nc3 {[%clk 0:02:59]}  Nc6 {[%clk 0:02:59]} 3. g3 {[%clk 0:02:58]}  Nf6 {[%clk 0:02:59]} 4. Bg2 {[%clk 0:02:59]}  Bc5 {[%clk 0:02:59]} 5. d3 {[%clk 0:02:58]}  h6 {[%clk 0:02:57]} 6. Nf3 {[%clk 0:02:57]}  O-O {[%clk 0:02:57]} 7. O-O {[%clk 0:02:56]}  Re8 {[%clk 0:02:58]} 8. Ne1 {[%clk 0:02:51]}  a5 {[%clk 0:02:54]} 9. Nc2 {[%clk 0:02:47]}  d6 {[%clk 0:02:40]} 10. Rb1 {[%clk 0:02:46]}  Be6 {[%clk 0:02:37]} 11. a3 {[%clk 0:02:43]}  d5 {[%clk 0:02:34]} 12. b4 {[%clk 0:02:28]}  axb4 {[%clk 0:02:29]} 13. axb4 {[%clk 0:02:29]}  Bf8 {[%clk 0:02:17]} 14. c5 {[%clk 0:02:10]}  Nb8 {[%clk 0:01:45]} 15. e4 {[%clk 0:02:02]}  c6 {[%clk 0:01:41]} 16. h3 {[%clk 0:01:45]}  Nbd7 {[%clk 0:01:37]} 17. f4 {[%clk 0:01:38]}  exf4 {[%clk 0:01:31]} 18. gxf4 {[%clk 0:01:37]}  dxe4 {[%clk 0:01:27]} 19. dxe4 {[%clk 0:01:37]}  Bc4 {[%clk 0:01:26]} 20. Re1 {[%clk 0:01:30]}  b6 {[%clk 0:01:19]} 21. Ne3 {[%clk 0:01:27]}  Ba6 {[%clk 0:01:11]} 22. e5 {[%clk 0:01:26]}  Nd5 {[%clk 0:01:07]} 23. Ncxd5 {[%clk 0:01:20]}  cxd5 {[%clk 0:01:07]} 24. b5 {[%clk 0:01:20]}  d4 {[%clk 0:00:53]} 25. bxa6 {[%clk 0:01:06]}  dxe3 {[%clk 0:00:53]} 26. Bxa8 {[%clk 0:01:02]}  Qxa8 {[%clk 0:00:49]} 27. Qxd7 {[%clk 0:00:57]}  Qf3 {[%clk 0:00:48]} 28. Rxe3 {[%clk 0:00:45]}  Bxc5 {[%clk 0:00:47]} 29. Qxe8+ {[%clk 0:00:44]}  Kh7 {[%clk 0:00:46]} 30. Rb3 {[%clk 0:00:20]}  Qd1+ {[%clk 0:00:18]} 31. Kg2 {[%clk 0:00:20]}  Qc2+ {[%clk 0:00:14]} 32. Kf3 {[%clk 0:00:18]}  Qd1+ {[%clk 0:00:13]} 33. Ke4 {[%clk 0:00:16]}  Qh1+ {[%clk 0:00:10]} 34. Kd3 {[%clk 0:00:14]}  Qd1+ {[%clk 0:00:09]} 35. Kc3 {[%clk 0:00:12]}  Qxc1+ {[%clk 0:00:09]} 36. Kd3 {[%clk 0:00:12]}  Qd1+ {[%clk 0:00:08]} 37. Ke4 {[%clk 0:00:11]}  Qh1+ {[%clk 0:00:06]} 38. Kf5 {[%clk 0:00:11]}  Qd5 {[%clk 0:00:02]} 39. Qc8 {[%clk 0:00:05]} 1-0


[Site "https://www.chess.com"]

[Event "Titled Tuesday Blitz January 17 Early 2023"]
[White "Legenia, Artem"]
[Black "Garrido, Denis"]
[WhiteFideId "14136945"]
[BlackFideId "601217"]
[WhiteElo "2092"]
[BlackElo "2205"]
[Result "1-0"]
[Round "07"]
[TimeControl "180+2"]
[Date "2023.01.17"]
[WhiteClock "0:01:41"]
[BlackClock "0:00:36"]

1. f4 {[%clk 0:03:00]}  d5 {[%clk 0:02:59]} 2. Nf3 {[%clk 0:03:00]}  g6 {[%clk 0:02:59]} 3. e3 {[%clk 0:03:00]}  Bg7 {[%clk 0:02:59]} 4. d4 {[%clk 0:03:01]}  Nh6 {[%clk 0:02:59]} 5. Bd3 {[%clk 0:03:01]}  Bf5 {[%clk 0:02:59]} 6. O-O {[%clk 0:03:00]}  O-O {[%clk 0:02:59]} 7. c3 {[%clk 0:03:00]}  c5 {[%clk 0:02:54]} 8. Bxf5 {[%clk 0:02:59]}  Nxf5 {[%clk 0:02:54]} 9. Ne5 {[%clk 0:03:00]}  Nd7 {[%clk 0:02:49]} 10. Qe2 {[%clk 0:02:58]}  Qc7 {[%clk 0:02:46]} 11. Nd2 {[%clk 0:02:58]}  b6 {[%clk 0:02:43]} 12. Kh1 {[%clk 0:02:53]}  f6 {[%clk 0:02:39]} 13. Nxd7 {[%clk 0:02:51]}  Qxd7 {[%clk 0:02:40]} 14. dxc5 {[%clk 0:02:27]}  bxc5 {[%clk 0:02:41]} 15. e4 {[%clk 0:02:28]}  dxe4 {[%clk 0:02:40]} 16. Nxe4 {[%clk 0:02:28]}  Rac8 {[%clk 0:02:32]} 17. Be3 {[%clk 0:02:28]}  Qd5 {[%clk 0:02:25]} 18. Bg1 {[%clk 0:02:22]}  Nd6 {[%clk 0:01:58]} 19. Nxd6 {[%clk 0:02:21]}  Qxd6 {[%clk 0:01:59]} 20. Rad1 {[%clk 0:02:20]}  Qc7 {[%clk 0:01:59]} 21. Qe6+ {[%clk 0:02:19]}  Kh8 {[%clk 0:01:58]} 22. Rd7 {[%clk 0:02:19]}  Qa5 {[%clk 0:01:54]} 23. Qxe7 {[%clk 0:02:13]}  Rg8 {[%clk 0:01:45]} 24. Rxa7 {[%clk 0:02:13]}  Qb5 {[%clk 0:01:45]} 25. Rd1 {[%clk 0:02:06]}  Qxb2 {[%clk 0:01:34]} 26. Rdd7 {[%clk 0:02:02]}  Rce8 {[%clk 0:01:30]} 27. Qxf6 {[%clk 0:01:58]}  Re1 {[%clk 0:00:37]} 28. Rxg7 {[%clk 0:01:57]}  Rxg1+ {[%clk 0:00:37]} 29. Kxg1 {[%clk 0:01:55]}  Qc1+ {[%clk 0:00:37]} 30. Kf2 {[%clk 0:01:55]}  Qd2+ {[%clk 0:00:38]} 31. Kf3 {[%clk 0:01:55]}  Qd3+ {[%clk 0:00:38]} 32. Kg4 {[%clk 0:01:53]}  h5+ {[%clk 0:00:36]} 33. Kg5 {[%clk 0:01:49]}  Qd5+ {[%clk 0:00:36]} 34. Kh6 {[%clk 0:01:41]} 1-0


[Site "https://www.chess.com"]

[Event "Titled Tuesday Blitz January 17 Early 2023"]
[White "ritanovikova"]
[Black "Seletsky, Grigory"]
[BlackFideId "14112191"]
[WhiteElo "2137"]
[BlackElo "2259"]
[Result "0-1"]
[Round "07"]
[TimeControl "180+2"]
[Date "2023.01.17"]
[WhiteClock "0:00:03"]
[BlackClock "0:01:09"]

1. d4 {[%clk 0:03:00]}  c5 {[%clk 0:02:59]} 2. c3 {[%clk 0:02:58]}  Qc7 {[%clk 0:02:57]} 3. g3 {[%clk 0:02:55]}  g6 {[%clk 0:02:57]} 4. Bf4 {[%clk 0:02:55]}  d6 {[%clk 0:02:56]} 5. Bg2 {[%clk 0:02:50]}  Bg7 {[%clk 0:02:57]} 6. Nf3 {[%clk 0:02:33]}  Nf6 {[%clk 0:02:54]} 7. O-O {[%clk 0:02:30]}  O-O {[%clk 0:02:53]} 8. Re1 {[%clk 0:02:22]}  Nbd7 {[%clk 0:02:51]} 9. e4 {[%clk 0:02:16]}  e5 {[%clk 0:02:46]} 10. dxe5 {[%clk 0:02:14]}  dxe5 {[%clk 0:02:46]} 11. Bg5 {[%clk 0:02:13]}  h6 {[%clk 0:02:44]} 12. Bd2 {[%clk 0:02:04]}  b6 {[%clk 0:02:38]} 13. Qc1 {[%clk 0:02:03]}  Kh7 {[%clk 0:02:36]} 14. h3 {[%clk 0:02:02]}  Bb7 {[%clk 0:02:35]} 15. Nh2 {[%clk 0:01:58]}  c4 {[%clk 0:02:34]} 16. Ng4 {[%clk 0:01:51]}  Nxg4 {[%clk 0:02:29]} 17. hxg4 {[%clk 0:01:50]}  Nc5 {[%clk 0:02:29]} 18. Qc2 {[%clk 0:01:38]}  b5 {[%clk 0:02:14]} 19. Be3 {[%clk 0:01:31]}  Nd3 {[%clk 0:02:09]} 20. Rd1 {[%clk 0:01:30]}  Rfd8 {[%clk 0:02:08]} 21. a4 {[%clk 0:01:25]}  a6 {[%clk 0:02:07]} 22. Na3 {[%clk 0:01:11]}  Qd7 {[%clk 0:02:02]} 23. axb5 {[%clk 0:01:02]}  axb5 {[%clk 0:02:01]} 24. Bf3 {[%clk 0:01:00]}  Bc6 {[%clk 0:01:58]} 25. b3 {[%clk 0:00:48]}  Qe6 {[%clk 0:01:56]} 26. bxc4 {[%clk 0:00:46]}  bxc4 {[%clk 0:01:57]} 27. Kg2 {[%clk 0:00:40]}  Ba4 {[%clk 0:01:55]} 28. Qe2 {[%clk 0:00:26]}  Bxd1 {[%clk 0:01:55]} 29. Qxd1 {[%clk 0:00:24]}  Nf4+ {[%clk 0:01:53]} 30. gxf4 {[%clk 0:00:24]}  Rxd1 {[%clk 0:01:53]} 31. Bxd1 {[%clk 0:00:25]}  exf4 {[%clk 0:01:50]} 32. Bxf4 {[%clk 0:00:23]}  Bxc3 {[%clk 0:01:49]} 33. Ra2 {[%clk 0:00:22]}  Bb4 {[%clk 0:01:38]} 34. Bf3 {[%clk 0:00:12]}  Rxa3 {[%clk 0:01:36]} 35. Rc2 {[%clk 0:00:13]}  c3 {[%clk 0:01:34]} 36. Rc1 {[%clk 0:00:13]}  g5 {[%clk 0:01:32]} 37. Be3 {[%clk 0:00:12]}  Ra2 {[%clk 0:01:18]} 38. Rh1 {[%clk 0:00:11]}  Kg8 {[%clk 0:01:15]} 39. e5 {[%clk 0:00:09]}  Qxe5 {[%clk 0:01:10]} 40. Rxh6 {[%clk 0:00:08]}  Bc5 {[%clk 0:01:10]} 41. Bc1 {[%clk 0:00:03]}  Rxf2+ {[%clk 0:01:09]} 0-1


[Site "https://www.chess.com"]

[Event "Titled Tuesday Blitz January 17 Early 2023"]
[White "Jiganchine, Roman"]
[Black "Better_Chess_Faster"]
[WhiteFideId "2603667"]
[WhiteElo "2205"]
[BlackElo "2030"]
[Result "1-0"]
[Round "07"]
[TimeControl "180+2"]
[Date "2023.01.17"]
[WhiteClock "0:00:13"]
[BlackClock "0:00:32"]

1. e4 {[%clk 0:03:00]}  e5 {[%clk 0:02:59]} 2. Nf3 {[%clk 0:02:59]}  Nc6 {[%clk 0:03:00]} 3. Nc3 {[%clk 0:02:59]}  Nf6 {[%clk 0:02:59]} 4. Bb5 {[%clk 0:02:59]}  Nd4 {[%clk 0:02:58]} 5. O-O {[%clk 0:02:59]}  c6 {[%clk 0:02:49]} 6. Bc4 {[%clk 0:02:47]}  d6 {[%clk 0:02:48]} 7. h3 {[%clk 0:02:36]}  Be7 {[%clk 0:02:46]} 8. d3 {[%clk 0:02:32]}  O-O {[%clk 0:02:46]} 9. Nxd4 {[%clk 0:02:29]}  exd4 {[%clk 0:02:45]} 10. Ne2 {[%clk 0:02:29]}  b5 {[%clk 0:02:43]} 11. Bb3 {[%clk 0:02:28]}  c5 {[%clk 0:02:44]} 12. a4 {[%clk 0:02:25]}  b4 {[%clk 0:02:41]} 13. Ng3 {[%clk 0:02:20]}  d5 {[%clk 0:02:37]} 14. exd5 {[%clk 0:02:11]}  Nxd5 {[%clk 0:02:36]} 15. Qf3 {[%clk 0:02:07]}  Bb7 {[%clk 0:02:35]} 16. Nf5 {[%clk 0:02:02]}  Bf6 {[%clk 0:02:22]} 17. Re1 {[%clk 0:01:42]}  Qd7 {[%clk 0:02:18]} 18. Qg4 {[%clk 0:01:12]}  Kh8 {[%clk 0:02:08]} 19. Bd2 {[%clk 0:00:55]}  Rae8 {[%clk 0:01:57]} 20. a5 {[%clk 0:00:36]}  a6 {[%clk 0:01:54]} 21. Rxe8 {[%clk 0:00:32]}  Rxe8 {[%clk 0:01:42]} 22. Ba4 {[%clk 0:00:31]}  Bc6 {[%clk 0:01:42]} 23. Bxc6 {[%clk 0:00:31]}  Qxc6 {[%clk 0:01:42]} 24. Qf3 {[%clk 0:00:27]}  Qd7 {[%clk 0:01:34]} 25. Ng3 {[%clk 0:00:25]}  Kg8 {[%clk 0:01:28]} 26. Ne4 {[%clk 0:00:25]}  Be5 {[%clk 0:01:23]} 27. Nxc5 {[%clk 0:00:20]}  Qc6 {[%clk 0:01:18]} 28. Nb3 {[%clk 0:00:19]}  Bc7 {[%clk 0:00:59]} 29. Rc1 {[%clk 0:00:19]}  Qd7 {[%clk 0:00:47]} 30. Nxd4 {[%clk 0:00:18]}  Bxa5 {[%clk 0:00:42]} 31. Nf5 {[%clk 0:00:16]}  Bc7 {[%clk 0:00:33]} 32. Qg4 {[%clk 0:00:13]}  g6 {[%clk 0:00:32]} 33. Nh6+ {[%clk 0:00:13]}  Kg7 {[%clk 0:00:32]} 34. Qxd7 {[%clk 0:00:13]}  Re7 {[%clk 0:00:32]} 35. Qxd5 {[%clk 0:00:13]} 1-0


[Site "https://www.chess.com"]

[Event "Titled Tuesday Blitz January 17 Early 2023"]
[White "Kiseleva, Arina"]
[Black "Khamdamova, Afruza"]
[WhiteFideId "4164989"]
[BlackFideId "14210444"]
[WhiteElo "1962"]
[BlackElo "2162"]
[Result "0-1"]
[Round "07"]
[TimeControl "180+2"]
[Date "2023.01.17"]
[WhiteClock "0:00:06"]
[BlackClock "0:00:17"]

1. d4 {[%clk 0:03:00]}  Nf6 {[%clk 0:03:00]} 2. Nf3 {[%clk 0:02:59]}  d5 {[%clk 0:03:00]} 3. e3 {[%clk 0:02:59]}  c5 {[%clk 0:03:00]} 4. Bd3 {[%clk 0:02:58]}  Nc6 {[%clk 0:03:00]} 5. O-O {[%clk 0:02:55]}  e6 {[%clk 0:03:01]} 6. b3 {[%clk 0:02:55]}  Be7 {[%clk 0:03:00]} 7. Bb2 {[%clk 0:02:54]}  O-O {[%clk 0:03:01]} 8. Nbd2 {[%clk 0:02:51]}  b6 {[%clk 0:03:01]} 9. Ne5 {[%clk 0:02:48]}  Bb7 {[%clk 0:03:01]} 10. f4 {[%clk 0:02:44]}  Rc8 {[%clk 0:02:58]} 11. Rf3 {[%clk 0:02:37]}  Ne4 {[%clk 0:02:53]} 12. Rh3 {[%clk 0:02:16]}  Nxe5 {[%clk 0:02:47]} 13. dxe5 {[%clk 0:01:57]}  f6 {[%clk 0:02:27]} 14. Qh5 {[%clk 0:01:22]}  h6 {[%clk 0:02:22]} 15. exf6 {[%clk 0:01:13]}  Bxf6 {[%clk 0:02:21]} 16. Bxf6 {[%clk 0:01:08]}  Qxf6 {[%clk 0:02:21]} 17. Nxe4 {[%clk 0:01:01]}  Qxa1+ {[%clk 0:02:19]} 18. Bf1 {[%clk 0:00:58]}  dxe4 {[%clk 0:02:19]} 19. Rg3 {[%clk 0:00:52]}  Qf6 {[%clk 0:02:06]} 20. Rg6 {[%clk 0:00:38]}  Qf7 {[%clk 0:01:38]} 21. Qxh6 {[%clk 0:00:37]}  Qd7 {[%clk 0:01:01]} 22. Rg3 {[%clk 0:00:19]}  Rf5 {[%clk 0:00:51]} 23. Qh4 {[%clk 0:00:14]}  Rcf8 {[%clk 0:00:40]} 24. Rh3 {[%clk 0:00:13]}  Kf7 {[%clk 0:00:21]} 25. g4 {[%clk 0:00:13]}  Rf6 {[%clk 0:00:21]} 26. Qh5+ {[%clk 0:00:10]}  Ke7 {[%clk 0:00:20]} 27. g5 {[%clk 0:00:08]}  R6f7 {[%clk 0:00:19]} 28. Qg6 {[%clk 0:00:06]}  e5 {[%clk 0:00:17]} 0-1


[Site "https://www.chess.com"]

[Event "Titled Tuesday Blitz January 17 Early 2023"]
[White "Ciuffoletti, Paolo"]
[Black "Mortazavi, Ali"]
[WhiteFideId "807630"]
[BlackFideId "401323"]
[WhiteElo "2106"]
[BlackElo "2333"]
[Result "0-1"]
[Round "07"]
[TimeControl "180+2"]
[Date "2023.01.17"]
[WhiteClock "0:00:21"]
[BlackClock "0:02:01"]

1. e4 {[%clk 0:03:00]}  c6 {[%clk 0:02:50]} 2. d4 {[%clk 0:02:59]}  d5 {[%clk 0:02:51]} 3. exd5 {[%clk 0:02:58]}  cxd5 {[%clk 0:02:50]} 4. c4 {[%clk 0:02:58]}  Nf6 {[%clk 0:02:50]} 5. Nc3 {[%clk 0:02:59]}  g6 {[%clk 0:02:50]} 6. Qb3 {[%clk 0:02:56]}  Bg7 {[%clk 0:02:50]} 7. cxd5 {[%clk 0:02:56]}  O-O {[%clk 0:02:50]} 8. Be2 {[%clk 0:02:56]}  Nbd7 {[%clk 0:02:44]} 9. Bf3 {[%clk 0:02:53]}  Nb6 {[%clk 0:02:44]} 10. Nge2 {[%clk 0:02:53]}  a5 {[%clk 0:02:45]} 11. a4 {[%clk 0:02:48]}  Qd6 {[%clk 0:02:44]} 12. O-O {[%clk 0:02:31]}  Qb4 {[%clk 0:02:44]} 13. Qa2 {[%clk 0:02:15]}  Bf5 {[%clk 0:02:39]} 14. Bf4 {[%clk 0:02:03]}  Bd3 {[%clk 0:02:34]} 15. Rfd1 {[%clk 0:01:57]}  Bc4 {[%clk 0:02:27]} 16. Qb1 {[%clk 0:01:56]}  Nbxd5 {[%clk 0:02:27]} 17. Be5 {[%clk 0:01:33]}  e6 {[%clk 0:02:21]} 18. Nxd5 {[%clk 0:01:27]}  Bxd5 {[%clk 0:02:21]} 19. Bxd5 {[%clk 0:01:26]}  Nxd5 {[%clk 0:02:20]} 20. Bxg7 {[%clk 0:01:25]}  Kxg7 {[%clk 0:02:21]} 21. Ra3 {[%clk 0:01:14]}  Rac8 {[%clk 0:02:19]} 22. Rc1 {[%clk 0:01:03]}  Qd2 {[%clk 0:02:13]} 23. Re1 {[%clk 0:00:42]}  Rc2 {[%clk 0:02:09]} 24. Rb3 {[%clk 0:00:35]}  Rfc8 {[%clk 0:02:08]} 25. h3 {[%clk 0:00:32]}  b6 {[%clk 0:02:03]} 26. Qd1 {[%clk 0:00:21]}  Qxd1 {[%clk 0:02:01]} 0-1


[Site "https://www.chess.com"]

[Event "Titled Tuesday Blitz January 17 Early 2023"]
[White "Avazkhonov, Alikhon"]
[Black "Broca Jimenez, Fernando"]
[WhiteFideId "14208504"]
[BlackFideId "5104742"]
[WhiteElo "1538"]
[BlackElo "2075"]
[Result "0-1"]
[Round "07"]
[TimeControl "180+2"]
[Date "2023.01.17"]
[WhiteClock "0:00:13"]
[BlackClock "0:01:37"]

1. d4 {[%clk 0:03:00]}  Nf6 {[%clk 0:02:59]} 2. c4 {[%clk 0:03:01]}  e6 {[%clk 0:02:59]} 3. Nc3 {[%clk 0:03:02]}  Bb4 {[%clk 0:03:00]} 4. e3 {[%clk 0:03:02]}  d5 {[%clk 0:02:58]} 5. Bd2 {[%clk 0:03:01]}  O-O {[%clk 0:02:58]} 6. Nf3 {[%clk 0:03:00]}  c5 {[%clk 0:02:58]} 7. a3 {[%clk 0:02:53]}  cxd4 {[%clk 0:02:57]} 8. exd4 {[%clk 0:02:22]}  Bxc3 {[%clk 0:02:35]} 9. Bxc3 {[%clk 0:02:23]}  Ne4 {[%clk 0:02:35]} 10. Rc1 {[%clk 0:02:21]}  Nxc3 {[%clk 0:02:30]} 11. Rxc3 {[%clk 0:02:20]}  Nc6 {[%clk 0:02:31]} 12. c5 {[%clk 0:01:57]}  e5 {[%clk 0:02:25]} 13. Nxe5 {[%clk 0:00:52]}  Re8 {[%clk 0:02:19]} 14. Be2 {[%clk 0:00:30]}  Nxe5 {[%clk 0:02:17]} 15. dxe5 {[%clk 0:00:31]}  Rxe5 {[%clk 0:02:17]} 16. O-O {[%clk 0:00:23]}  Bf5 {[%clk 0:02:17]} 17. b4 {[%clk 0:00:20]}  Qe7 {[%clk 0:02:07]} 18. f3 {[%clk 0:00:19]}  Rxe2 {[%clk 0:02:04]} 19. Qxd5 {[%clk 0:00:19]}  Bg6 {[%clk 0:01:40]} 20. f4 {[%clk 0:00:13]}  Be4 {[%clk 0:01:37]} 0-1


[Site "https://www.chess.com"]